bitfinex-derivatives/quotes_ETHF0:USTF0_20250911
["timestamp","ask_amount","ask_price","bid_price","bid_amount"]
[1757554316837,0.7217,4375.4,4375.3,0.5272]
[1757554317032,0.7217,4375.4,4375.0,0.3187]
[1757554317237,0.2036,4374.6,4374.5,0.8484]
[1757554317546,0.527,4374.6,4374.5,0.8484]
[1757554319943,0.2036,4374.6,4374.5,0.8484]
[1757554320543,0.527,4374.6,4374.5,0.8484]
[1757554320845,0.3234,4374.9,4374.6,0.3187]
[1757554321046,0.3234,4374.9,4374.5,0.1195]
[1757554321047,0.527,4374.9,4374.8,0.4102]
[1757554321347,0.527,4374.9,4374.8,0.7289]
[1757554321644,0.527,4375.9,4375.8,0.4102]
[1757554321845,0.527,4375.9,4375.8,0.7289]
[1757554322047,0.7398,4375.9,4375.8,0.7289]
[1757554324947,0.7398,4375.9,4375.1,0.3187]
[1757554325148,0.99979799,4375.3,4375.2,0.5291]
[1757554325341,1.41619799,4375.3,4375.2,0.7289]
[1757554325648,0.527,4375.3,4375.2,0.7289]
[1757554326648,0.7398,4375.3,4375.2,0.7289]
[1757554326850,0.7398,4375.3,4374.6,0.3187]
[1757554327050,1.73959799,4374.7,4374.6,0.5291]
[1757554327250,1.73959799,4374.7,4374.6,0.7289]
[1757554328051,0.7398,4374.7,4374.6,0.7289]
[1757554328548,0.5544,4375.4,4375.3,0.4102]
[1757554328748,0.231,4375.4,4375.3,0.7289]
[1757554328949,0.527,4375.7,4375.6,0.4102]
[1757554329148,0.527,4376.4,4376.3,0.2104]
[1757554329349,1.53761358,4376.4,4376.3,0.5291]
[1757554329543,1.53761358,4376.4,4376.0,0.3187]
[1757554329743,1.41619799,4376.2,4376.1,0.2104]
[1757554329943,1.73959799,4376.2,4376.1,0.5291]
[1757554332055,1.73959799,4376.2,4376.1,0.7289]
[1757554333154,1.73959799,4376.2,4375.8,0.3187]
[1757554333357,1.41619799,4375.9,4375.0,0.1217]
[1757554333553,1.41619799,4375.2,4375.1,0.7289]
[1757554333748,1.73959799,4375.2,4375.1,0.7289]
[1757554334250,1.73959799,4375.2,4374.8,0.3187]
[1757554334453,0.2036,4374.4,4374.3,0.7289]
[1757554334850,0.3234,4374.8,4374.3,0.7289]
[1757554335050,0.2036,4374.5,4374.4,0.7289]
[1757554335452,0.527,4374.5,4374.4,0.7289]
[1757554336052,0.2036,4374.5,4374.4,0.7289]
[1757554336558,0.527,4374.8,4374.7,0.7289]
[1757554336750,0.7398,4374.8,4374.7,0.7289]
[1757554340453,0.7398,4374.8,4374.7,0.5291]
[1757554340655,0.1292,4375.5,4375.0,0.8506]
[1757554340656,0.527,4375.1,4375.0,0.8506]
[1757554341953,0.2036,4375.1,4375.0,0.8506]
[1757554342257,0.1289,4376.5,4375.1,0.7289]
[1757554342553,0.231,4376.2,4375.9,0.3187]
[1757554342761,0.9708,4376.2,4376.1,0.7289]
[1757554343662,0.7398,4376.2,4376.1,0.7289]
[1757554343864,0.231,4376.5,4376.2,0.3187]
[1757554344057,0.758,4376.5,4376.4,0.7289]
[1757554344559,0.527,4376.5,4376.4,0.7289]
[1757554344761,0.758,4376.5,4376.4,0.7289]
[1757554345364,0.527,4376.5,4376.4,0.7289]
[1757554346064,0.7398,4376.5,4376.4,0.7289]
[1757554350962,32.905,4376.8,4376.5,0.4338]
[1757554351169,33.4187,4376.8,4376.7,0.4098]
[1757554351370,33.8616,4376.8,4376.7,0.7225]
[1757554355374,0.2035,4376.8,4376.7,0.4098]
[1757554355580,0.7256,4376.8,4376.7,0.7225]
[1757554355780,0.7256,4376.8,4376.7,0.5136]
[1757554357479,0.7256,4376.8,4376.1,0.3127]
[1757554357685,0.3102,4376.6,4376.2,0.3127]
[1757554357869,0.7256,4376.6,4376.5,0.7225]
[1757554359578,1.9104849,4376.6,4376.5,0.2009]
[1757554359774,0.3102,4376.1,4375.6,0.3127]
[1757554359975,0.2035,4375.7,4375.6,0.7225]
[1757554360176,0.5137,4375.7,4375.6,0.7225]
[1757554361283,0.1181,4376.5,4375.7,0.3127]
[1757554361578,0.7256,4376.4,4376.3,0.7225]
[1757554361782,0.4154,4376.4,4376.3,0.7225]
[1757554362182,0.7256,4376.4,4376.3,0.7225]
[1757554362377,0.7256,4376.4,4376.3,0.3127]
[1757554362682,0.7256,4376.4,4376.3,0.5136]
[1757554363980,0.7256,4376.4,4375.9,0.3127]
[1757554364184,0.7256,4376.4,4375.6,0.22852]
[1757554364482,0.7256,4376.4,4375.7,0.3127]
[1757554364681,0.3102,4376.3,4375.8,0.3127]
[1757554364884,0.5137,4375.9,4375.8,0.7225]
[1757554365784,0.2035,4375.9,4375.8,0.7225]
[1757554366987,0.3102,4376.2,4376.0,0.1211]
[1757554367178,0.5137,4376.2,4376.1,0.7225]
[1757554367375,0.7256,4376.2,4376.1,0.7225]
[1757554370984,0.7256,4376.2,4375.6,0.3127]
[1757554371291,0.3401,4376.5,4375.2,0.5136]
[1757554371292,0.7256,4375.3,4375.2,0.5136]
[1757554371783,0.7256,4375.3,4374.9,0.3127]
[1757554372386,0.7256,4375.3,4374.6,0.3127]
[1757554377986,0.729,4374.7,4374.1,0.3142]
[1757554382891,0.217,4374.9,4373.6,0.518]
[1757554382892,0.217,4373.7,4373.6,0.518]
[1757554383082,0.2977,4374.1,4373.6,0.7323]
[1757554383282,0.2977,4374.3,4373.7,0.518]
[1757554383502,0.5147,4373.8,4373.7,0.7323]
[1757554384293,0.217,4373.8,4373.7,0.7323]
[1757554384994,0.729,4373.8,4373.7,0.7323]
[1757554402613,0.5147,4374.4,4374.3,0.7323]
[1757554403105,0.729,4374.4,4374.3,0.7323]
[1757554403307,1.9138849,4374.4,4373.6,0.3142]
[1757554403614,0.729,4373.4,4373.3,0.518]
[1757554404706,0.729,4373.4,4373.3,0.7323]
[1757554414414,1.12774059,4374.0,4373.3,0.4181]
[1757554414623,0.7031,4373.8,4373.7,0.415]
[1757554414919,0.7031,4373.8,4373.7,0.7118]
[1757554415116,0.7031,4373.8,4373.7,0.4953]
[1757554415917,0.4044,4373.8,4373.2,0.2968]
[1757554416118,0.1985,4373.3,4373.2,0.7118]
[1757554416421,1.12774059,4374.0,4373.2,0.7118]
[1757554416616,0.2987,4373.9,4373.3,0.2968]
[1757554416816,0.1985,4373.4,4373.3,0.7118]
[1757554417013,0.4972,4373.4,4373.3,0.7118]
[1757554417625,0.7031,4373.4,4373.3,0.7118]
[1757554428428,0.1985,4373.4,4373.3,0.7118]
[1757554429230,0.4972,4373.4,4373.3,0.7118]
[1757554430132,0.7031,4373.4,4373.3,0.7118]
[1757554433330,0.7031,4373.4,4373.3,2.74474452]
[1757554435639,0.1259,4374.0,4373.3,2.74474452]
[1757554435834,0.1985,4374.4,4374.3,0.7118]
[1757554436336,0.4972,4374.4,4374.3,0.7118]
[1757554438743,0.7031,4374.4,4374.3,0.7118]
[1757554442648,0.1985,4374.4,4374.3,1.71364059]
[1757554443048,0.5126,4374.4,4374.3,1.71364059]
[1757554443543,0.5126,4374.4,4374.3,0.7118]
[1757554444844,0.727,4374.4,4374.3,0.7118]
[1757554457563,0.7375,4375.4,4375.3,0.7115]
[1757554457771,0.209,4375.4,4375.3,1.71334059]
[1757554458068,0.7375,4375.9,4375.8,0.5137]
[1757554458570,0.3141,4375.8,4375.4,0.3076]
[1757554458865,0.3141,4375.7,4375.6,1.00184059]
[1757554459069,0.7375,4376.4,4376.3,0.2061]
[1757554459271,0.7375,4376.4,4376.3,0.5137]
[1757554459767,0.966,4376.4,4376.3,0.5137]
[1757554460264,0.7375,4376.4,4376.3,0.5137]
[1757554460471,0.7375,4376.4,4376.3,0.7115]
[1757554462269,0.209,4376.4,4376.3,0.7115]
[1757554462468,0.3141,4376.6,4376.3,0.7115]
[1757554462769,0.3141,4376.6,4376.5,0.833]
[1757554463169,0.3141,4377.7,4377.2,0.3076]
[1757554463368,0.3141,4377.5,4377.4,1.51554059]
[1757554463569,0.7375,4377.9,4377.8,0.4039]
[1757554463769,0.7375,4377.9,4377.8,0.7115]
[1757554464067,0.3141,4378.2,4377.8,0.7115]
[1757554464277,0.7375,4378.4,4378.3,0.2061]
[1757554464475,0.7375,4378.4,4378.3,0.5137]
[1757554464770,0.7375,4378.4,4378.3,0.2061]
[1757554464967,0.7375,4378.4,4377.7,1.00184059]
[1757554465168,0.3141,4378.3,4377.8,0.3076]
[1757554465371,0.5231,4377.9,4377.8,0.7115]
[1757554465868,0.7375,4377.9,4377.8,0.7115]
[1757554475580,0.7375,4377.9,4377.0,0.1215]
[1757554475581,0.7375,4377.9,4377.6,0.2944]
[1757554475884,0.1282,4377.5,4377.1,0.2944]
[1757554476072,0.7349,4377.2,4377.1,0.7075]
[1757554481683,0.3044,4377.1,4376.6,0.2944]
[1757554481881,0.7349,4376.7,4376.6,0.7075]
[1757554482681,0.5204,4376.7,4376.6,0.7075]
[1757554482886,0.216,4376.7,4376.6,0.7075]
[1757554483380,0.3044,4377.0,4376.6,0.7075]
[1757554483682,0.1282,4377.5,4376.7,0.2944]
[1757554483883,0.3044,4377.4,4376.7,0.2944]
[1757554484084,0.216,4376.8,4376.7,0.7075]
[1757554484382,0.5204,4376.8,4376.7,0.7075]
[1757554484788,0.7349,4376.8,4376.7,0.7075]
[1757554485780,0.7349,4377.4,4377.3,0.7075]
[1757554486084,0.5204,4377.4,4377.3,0.7075]
[1757554487379,0.7349,4377.4,4377.3,0.7075]
[1757554487578,0.216,4377.0,4376.9,0.51]
[1757554487783,0.216,4377.0,4376.9,0.7075]
[1757554487784,0.7349,4377.0,4376.9,0.7075]
[1757554488585,0.8631,4377.0,4376.9,0.7075]
[1757554489084,0.7349,4377.0,4376.9,0.7075]
[1757554492981,0.3044,4377.9,4377.1,0.2944]
[1757554493289,0.7349,4377.9,4377.8,0.51]
[1757554493484,0.96334001,4377.9,4377.8,0.51]
[1757554493686,0.7349,4377.9,4377.8,0.51]
[1757554497492,0.7349,4377.9,4377.1,0.3198]
[1757554501789,0.1959,4376.8,4376.7,0.629]
[1757554501991,0.3103,4377.0,4376.7,0.629]
[1757554502295,0.7232,4377.4,4377.3,0.399]
[1757554502495,0.7232,4377.4,4377.3,0.7188]
[1757554503584,0.7232,4377.4,4377.0,0.3198]
[1757554503999,0.4129,4377.4,4376.8,0.3198]
[1757554504198,0.7232,4377.3,4377.2,0.2014]
[1757554504388,0.7232,4377.3,4377.2,0.5212]
[1757554504999,0.7232,4377.3,4377.2,0.7188]
[1757554505505,0.5368,4377.0,4376.9,0.5212]
[1757554505701,0.8471,4377.0,4376.9,0.5212]
[1757554506001,0.7232,4376.3,4376.2,2.55414452]
[1757554506304,0.7232,4376.3,4376.2,0.7188]
[1757554509497,0.1239,4377.0,4376.3,0.3198]
[1757554509703,0.1282,4378.0,4377.1,0.7188]
[1757554509901,0.3103,4377.9,4377.2,0.3198]
[1757554510098,0.53874001,4377.9,4377.2,0.3198]
[1757554510297,0.7232,4377.9,4377.8,0.5212]
[1757554513301,0.7232,4377.9,4377.5,0.3198]
[1757554513498,0.4129,4377.9,4377.3,0.3198]
[1757554513801,0.7232,4377.8,4377.7,0.2014]
[1757554514104,0.7232,4377.8,4377.7,0.5212]
[1757554514708,0.7232,4377.8,4377.7,0.2014]
[1757554515808,0.7232,4377.8,4377.5,0.3198]
[1757554516102,0.7232,4377.8,4377.1,0.3198]
[1757554516906,0.1239,4377.5,4377.1,0.3198]
[1757554517101,0.3103,4377.1,4376.6,0.3198]
[1757554517305,0.5062,4376.7,4376.6,0.7188]
[1757554517611,0.1239,4377.5,4376.6,0.399]
[1757554517804,0.3103,4377.4,4376.7,0.3198]
[1757554518010,0.7232,4377.4,4377.3,0.5212]
[1757554518806,0.7232,4377.4,4377.3,0.2014]
[1757554521414,0.7232,4377.4,4377.3,0.5212]
[1757554521716,0.7232,4378.4,4378.3,0.5212]
[1757554521916,0.7232,4378.4,4377.6,0.3198]
[1757554523517,0.7232,4377.7,4377.6,0.3198]
[1757554523818,0.7232,4377.7,4377.6,0.5212]
[1757554524819,0.7232,4377.7,4377.6,0.7188]
[1757554525316,0.4129,4377.7,4377.1,0.3198]
[1757554525517,0.5062,4377.2,4377.1,0.7188]
[1757554526312,0.5062,4377.2,4377.1,1.71867499]
[1757554526509,0.7232,4377.2,4376.7,2.35274452]
[1757554526811,0.7232,4376.9,4376.8,0.5212]
[1757554527011,0.7232,4376.9,4376.8,0.7188]
[1757554527211,0.7232,4376.9,4376.4,2.03294452]
[1757554527212,0.5167,4376.5,4376.4,2.03294452]
[1757554527517,0.7027,4376.4,4376.3,0.5167]
[1757554528418,0.7027,4376.4,4376.3,0.1997]
[1757554528618,0.3041,4376.3,4375.8,3.03281951]
[1757554528818,0.5006,4376.0,4375.9,0.7153]
[1757554529118,0.3041,4376.9,4376.3,0.317]
[1757554529308,0.7027,4376.9,4376.8,0.7153]
[1757554531723,0.7027,4376.9,4376.8,0.1997]
[1757554532116,1.70257499,4376.9,4376.0,0.1281]
[1757554532316,1.70257499,4376.9,4376.1,0.317]
[1757554533422,0.7027,4376.2,4376.1,0.317]
[1757554533723,0.7027,4375.9,4375.8,0.7153]
[1757554533916,0.1965,4375.9,4375.8,0.7153]
[1757554534112,0.3041,4376.2,4375.8,0.3983]
[1757554534324,0.3041,4376.2,4375.6,0.99987499]
[1757554534325,0.5006,4376.2,4376.1,0.3983]
[1757554534515,0.1965,4376.2,4376.1,0.7153]
[1757554534712,0.3041,4376.6,4376.2,0.317]
[1757554534925,0.7027,4376.6,4376.5,0.7153]
[1757554537312,0.3041,4376.9,4376.5,1.52627499]
[1757554537512,0.7027,4376.9,4376.8,0.7153]
[1757554539522,0.3986,4376.6,4376.2,0.99987499]
[1757554539727,0.7027,4376.4,4376.3,0.5167]
[1757554541530,0.7027,4376.4,4376.3,0.7153]
[1757554543930,0.7027,4376.4,4375.6,3.03281951]
[1757554544123,0.1965,4375.8,4375.7,0.5167]
[1757554544330,0.5006,4375.8,4375.7,0.7153]
[1757554544630,0.1965,4376.1,4376.0,0.8434]
[1757554544933,0.1965,4376.1,4376.0,1.84327499]
[1757554545131,0.7027,4376.1,4376.0,0.7153]
[1757554546032,0.7027,4376.1,4376.0,0.5167]
[1757554547130,0.7027,4376.1,4376.0,0.7153]
[1757554547325,0.1965,4376.1,4376.0,0.8434]
[1757554547528,0.5006,4376.1,4376.0,0.8434]
[1757554547828,0.7027,4376.1,4376.0,0.8434]
[1757554550234,0.7027,4376.1,4376.0,0.7153]
[1757554552731,0.7027,4376.1,4375.7,0.317]
[1757554552939,0.7027,4375.8,4375.7,0.5167]
[1757554553434,0.3041,4375.7,4375.2,2.03294452]
[1757554553636,0.5006,4375.4,4375.3,0.7153]
[1757554553839,0.7027,4375.4,4375.3,0.7153]
[1757554555439,0.3041,4375.9,4375.4,0.317]
[1757554555640,0.7027,4375.9,4375.8,0.3983]
[1757554555838,0.7027,4375.9,4375.8,0.7153]
[1757554557038,0.2973,4376.4,4375.9,0.3175]
[1757554557241,0.2973,4376.4,4376.3,0.2011]
[1757554557242,0.7142,4376.4,4376.3,0.2011]
[1757554557433,0.7142,4376.4,4376.3,0.5186]
[1757554558935,0.7142,4376.4,4376.3,0.2011]
[1757554559635,0.7142,4376.4,4376.0,0.3175]
[1757554559840,0.4169,4376.4,4375.8,0.3175]
[1757554560035,0.4169,4375.9,4375.8,0.2011]
[1757554560341,0.7142,4375.9,4375.8,0.5186]
[1757554560752,0.7142,4375.9,4375.8,0.7337]
[1757554561444,0.7142,4375.9,4375.8,0.2011]
[1757554561741,0.2973,4375.8,4375.4,0.3175]
[1757554561942,0.7142,4375.5,4375.4,0.7337]
[1757554563039,0.4169,4375.3,4375.2,0.3175]
[1757554563247,0.7142,4375.3,4375.2,0.2011]
[1757554563432,0.7142,4375.3,4375.2,0.7337]
[1757554565542,0.7142,4375.3,4374.5,0.1281]
[1757554565543,0.7142,4373.9,4373.8,2.44914452]
[1757554565846,0.7142,4373.9,4373.8,0.4162]
[1757554566234,0.7142,4373.9,4373.8,0.7337]
[1757554567036,0.2973,4374.2,4374.0,0.1181]
[1757554567232,0.1224,4374.5,4374.2,0.3175]
[1757554567233,0.2973,4374.5,4374.2,0.3175]
[1757554567432,0.2074,4374.3,4374.2,0.7337]
[1757554567639,0.5047,4374.3,4374.2,0.7337]
[1757554567845,0.2973,4374.9,4374.3,0.3175]
[1757554568254,0.2074,4374.4,4374.3,0.7337]
[1757554570450,0.1224,4375.0,4374.3,0.7337]
[1757554570644,0.5047,4374.9,4374.8,0.4162]
[1757554570948,0.5047,4374.9,4374.8,0.7337]
[1757554572041,0.7142,4374.9,4374.8,0.7337]
[1757554574050,0.7142,4374.2,4374.1,0.7337]
[1757554574647,0.2074,4374.2,4374.1,0.7337]
[1757554576552,0.99987499,4374.9,4374.1,0.4162]
[1757554576752,0.99987499,4374.9,4374.2,0.3175]
[1757554577053,0.2074,4374.3,4374.2,0.7337]
[1757554577348,0.5047,4374.3,4374.2,0.7337]
[1757554578045,0.2973,4374.8,4374.3,0.3175]
[1757554578248,0.2074,4374.8,4374.7,0.4162]
[1757554578551,0.99987499,4375.2,4375.1,0.7337]
[1757554578552,0.5047,4375.2,4375.1,0.7337]
[1757554580551,0.7142,4375.2,4375.1,0.7337]
[1757554589057,0.7142,4375.2,4374.6,0.3178]
[1757554589957,0.7142,4375.2,4375.1,0.5171]
[1757554591160,0.7142,4375.2,4375.1,0.714]
[1757554598166,0.7113,4375.2,4374.6,0.3178]
[1757554600270,0.7113,4375.2,4375.1,0.1993]
[1757554600468,0.7113,4375.2,4375.1,0.5171]
[1757554602274,0.7113,4375.2,4375.1,0.1993]
[1757554602771,1.89679525,4375.2,4374.6,0.3178]
[1757554602966,0.1285,4375.0,4374.6,0.3178]
[1757554603268,0.4137,4374.2,4374.1,0.1993]
[1757554603467,0.7258,4374.2,4374.1,0.714]
[1757554605060,0.7258,4374.2,4374.1,0.5171]
[1757554605266,0.4137,4374.2,4374.1,0.1993]
[1757554605464,0.4137,4374.2,4374.1,0.714]
[1757554605669,0.2071,4374.2,4374.1,0.714]
[1757554605864,0.5192,4374.2,4374.1,0.714]
[1757554606772,0.7258,4374.2,4374.1,0.714]
[1757554606968,0.7258,4374.2,4373.8,0.3178]
[1757554607270,0.1285,4374.5,4373.6,2.03294452]
[1757554607271,0.7258,4373.7,4373.6,0.1993]
[1757554607868,0.7258,4373.7,4373.6,0.5171]
[1757554608064,0.7258,4373.7,4373.6,0.1993]
[1757554608475,0.7258,4373.7,4373.6,0.5171]
[1757554608665,0.7258,4373.7,4373.6,0.714]
[1757554608869,0.5192,4373.7,4373.6,0.714]
[1757554609674,0.7258,4373.7,4373.6,0.714]
[1757554620179,0.301,4374.2,4373.6,0.3962]
[1757554620481,0.5079,4374.2,4374.1,0.7282]
[1757554620676,0.7251,4374.2,4374.1,0.7282]
[1757554620877,0.2069,4373.2,4373.1,0.7282]
[1757554621075,0.7251,4373.2,4373.1,0.7282]
[1757554623277,0.7251,4373.2,4373.1,0.5204]
[1757554623882,0.7251,4373.2,4373.1,0.7282]
[1757554624982,0.7251,4373.2,4372.6,0.3051]
[1757554625181,0.7251,4373.2,4373.1,0.2153]
[1757554625482,0.7251,4373.2,4373.1,0.5204]
[1757554626096,0.4241,4372.7,4372.6,0.3051]
[1757554626386,0.7251,4372.7,4372.6,0.5204]
[1757554626581,0.7251,4372.7,4372.6,0.7282]
[1757554627688,0.7251,4372.7,4372.6,0.5204]
[1757554627897,0.7251,4372.7,4372.1,0.3051]
[1757554628187,0.4241,4372.7,4372.6,0.5204]
[1757554628584,0.7251,4372.7,4372.6,0.5204]
[1757554629788,0.7251,4372.7,4372.1,0.3051]
[1757554630789,0.7251,4372.7,4372.6,0.7282]
[1757554631594,0.2069,4372.7,4372.6,0.7282]
[1757554632089,0.223,4373.3,4372.6,0.4231]
[1757554632288,0.95378,4373.2,4373.1,0.5204]
[1757554632692,0.7251,4373.2,4373.1,0.5204]
[1757554632994,0.7251,4373.2,4373.1,0.7282]
[1757554634393,0.7251,4373.2,4373.1,0.5204]
[1757554634693,0.7251,4373.2,4372.6,0.3051]
[1757554636494,0.7251,4373.2,4373.1,0.2153]
[1757554636697,0.7251,4373.2,4373.1,0.7282]
[1757554637796,0.7251,4373.2,4373.1,0.5204]
[1757554638188,0.7251,4373.2,4373.1,0.2153]
[1757554639300,0.7251,4373.2,4372.9,0.3051]
[1757554639892,0.7251,4373.2,4372.5,0.1222]
[1757554640098,0.7251,4373.2,4372.6,0.3051]
[1757554640601,0.7251,4373.2,4373.1,0.7282]
[1757554642187,0.7251,4373.2,4373.1,0.5204]
[1757554644599,0.9561,4373.2,4373.1,0.7282]
[1757554646004,0.7251,4373.2,4373.1,0.7282]
[1757554646210,0.9561,4373.2,4373.1,0.7282]
[1757554647509,0.9561,4373.2,4373.1,0.5204]
[1757554647802,0.9561,4373.2,4372.6,0.3031]
[1757554648010,0.9561,4373.2,4372.6,0.5085]
[1757554648011,0.7162,4372.7,4372.6,0.5085]
[1757554648400,1.71850683,4372.7,4372.6,0.5085]
[1757554650210,0.7162,4372.4,4372.3,0.5085]
[1757554650407,1.71850683,4372.4,4372.3,0.5085]
[1757554651121,1.71850683,4372.4,4371.7,0.3031]
[1757554651122,0.2981,4372.3,4371.7,0.3031]
[1757554652017,0.7162,4371.8,4371.7,0.7135]
[1757554653725,1.71850683,4371.8,4371.7,0.2054]
[1757554653922,0.8379,4371.5,4371.0,2.15514452]
[1757554654225,1.42040683,4371.3,4371.2,0.5085]
[1757554654616,1.71850683,4371.3,4371.2,0.5085]
[1757554654921,1.71850683,4371.3,4370.5,2.15154452]
[1757554655117,0.4181,4370.7,4370.6,0.5085]
[1757554655324,0.7162,4370.7,4370.6,0.7135]
[1757554656115,0.4181,4370.7,4370.1,0.3031]
[1757554656315,0.4181,4370.2,4370.1,0.7135]
[1757554656621,0.7162,4370.2,4370.1,0.7135]
[1757554657116,0.2127,4370.2,4370.1,0.7135]
[1757554657323,0.7162,4370.2,4370.1,0.7135]
[1757554658210,0.7162,4370.2,4370.1,0.5085]
[1757554658514,0.7162,4370.2,4369.6,0.3031]
[1757554658715,1.71850683,4370.2,4369.6,0.3031]
[1757554659116,1.00230683,4369.8,4369.1,0.4104]
[1757554659422,0.7162,4369.2,4369.1,0.4104]
[1757554659821,0.7162,4369.2,4369.1,0.7135]
[1757554663120,0.7162,4369.2,4369.1,0.5085]
[1757554664023,0.7162,4369.2,4368.6,0.3031]
[1757554664225,1.71850683,4369.2,4368.6,0.3031]
[1757554667531,0.7162,4369.2,4368.6,0.3031]
[1757554670427,1.71850683,4369.1,4369.0,0.5085]
[1757554670628,1.71850683,4369.1,4369.0,0.2054]
[1757554670820,0.1217,4369.0,4368.5,0.1186]
[1757554671021,0.5108,4368.6,4368.5,0.529]
[1757554671216,0.7162,4368.6,4368.5,0.529]
[1757554671422,0.7162,4368.6,4368.5,0.8321]
[1757554671630,0.7162,4368.6,4368.5,0.7135]
[1757554673236,0.7162,4368.6,4368.5,0.5085]
[1757554673421,0.1217,4368.5,4368.1,0.3031]
[1757554673729,0.7162,4368.2,4368.1,0.7135]
[1757554676220,0.7162,4368.2,4367.5,0.1186]
[1757554676221,0.7162,4368.2,4367.5,0.4217]
[1757554676526,0.1217,4368.5,4367.5,0.8321]
[1757554676527,0.5108,4367.6,4367.5,0.8321]
[1757554677233,0.2127,4367.6,4367.5,0.8321]
[1757554678232,0.1217,4368.5,4367.4,0.7422]
[1757554678233,0.7139,4367.5,4367.4,0.7422]
[1757554678430,0.2014,4367.6,4367.5,0.8712]
[1757554678631,0.5082,4367.6,4367.5,0.8712]
[1757554678831,0.7139,4367.6,4367.5,0.7422]
[1757554681531,0.2014,4367.1,4367.0,0.6552]
[1757554681728,0.5082,4367.1,4367.0,0.8712]
[1757554683439,0.7139,4367.1,4367.0,0.8712]
[1757554684032,0.7139,4367.1,4367.0,0.7422]
[1757554684831,0.7139,4367.1,4367.0,0.8712]
[1757554685937,0.3068,4367.4,4367.0,0.5521]
[1757554686236,1.51050683,4367.5,4367.4,0.7422]
[1757554686435,1.71620683,4367.5,4367.4,0.7422]
[1757554687032,1.71620683,4368.4,4368.3,0.7422]
[1757554688637,0.7139,4368.4,4368.3,0.7422]
[1757554689337,0.7139,4368.4,4367.6,0.3191]
[1757554689536,0.5082,4367.7,4367.6,0.7422]
[1757554690236,0.2014,4367.7,4367.6,0.7422]
[1757554691641,0.5082,4367.7,4367.6,0.7422]
[1757554692051,0.2014,4367.7,4367.6,0.7422]
[1757554694233,0.7139,4367.7,4367.6,0.7422]
[1757554694739,0.1186,4367.5,4366.2,40.1]
[1757554695043,0.7139,4367.2,4367.1,0.5262]
[1757554695244,0.7139,4367.2,4367.1,0.7422]
[1757554695742,0.3068,4367.8,4367.2,0.3191]
[1757554695947,0.7139,4367.8,4367.7,0.7422]
[1757554696742,0.2014,4367.8,4367.7,0.7422]
[1757554698541,1.71620683,4368.8,4368.7,0.5262]
[1757554698744,1.28150455,4368.8,4368.7,0.5262]
[1757554698944,2.28381138,4368.8,4368.7,0.2071]
[1757554699239,2.28381138,4368.8,4368.7,0.5262]
[1757554699443,1.71620683,4368.8,4368.7,0.7422]
[1757554699840,0.7139,4368.8,4368.7,0.7422]
[1757554702638,0.7139,4368.8,4368.1,0.3191]
[1757554702943,1.71620683,4368.2,4368.1,0.5262]
[1757554703139,1.71620683,4368.2,4367.5,0.129]
[1757554703334,1.71620683,4367.7,4367.6,0.5262]
[1757554703539,1.71620683,4367.7,4367.6,0.2071]
[1757554704149,1.71620683,4367.7,4367.1,0.3191]
[1757554704646,1.71620683,4367.4,4367.3,0.2071]
[1757554704946,1.71620683,4367.4,4367.3,0.7422]
[1757554705250,0.2014,4367.4,4367.3,0.7422]
[1757554705943,0.3068,4367.7,4367.4,0.3191]
[1757554706247,0.5082,4367.7,4367.6,0.4231]
[1757554706547,0.2014,4367.7,4367.6,0.7422]
[1757554707052,1.90660683,4368.3,4368.2,0.1985]
[1757554707244,1.90660683,4368.3,4367.9,0.324]
[1757554707448,1.90660683,4368.3,4367.6,0.324]
[1757554707749,1.90660683,4368.3,4368.2,0.1985]
[1757554708451,0.9043,4368.3,4368.0,0.324]
[1757554708645,0.9043,4368.3,4367.6,0.324]
[1757554708845,0.9043,4368.3,4368.2,0.5225]
[1757554709445,0.9043,4368.3,4368.2,0.1985]
[1757554710252,0.9043,4368.3,4368.2,0.5225]
[1757554711753,0.9043,4368.3,4368.2,0.1985]
[1757554712651,0.4933,4367.6,4367.5,0.5254]
[1757554712848,0.6922,4367.6,4367.5,0.3964]
[1757554713352,0.6922,4367.6,4367.5,0.7204]
[1757554715052,0.3985,4367.6,4367.5,0.1985]
[1757554715451,0.3985,4367.6,4367.5,0.5225]
[1757554715749,0.6922,4367.6,4367.5,0.5225]
[1757554716650,0.3985,4367.6,4367.5,0.8415]
[1757554717153,0.6922,4367.6,4367.5,0.8415]
[1757554720455,0.6922,4367.6,4367.5,0.7204]
[1757554720755,0.6922,4367.6,4367.5,0.1985]
[1757554721154,0.6922,4367.6,4367.5,0.5225]
[1757554722057,0.1996,4367.2,4367.1,0.7204]
[1757554722357,0.6922,4367.2,4367.1,0.7204]
[1757554722558,0.1996,4367.2,4367.1,0.7204]
[1757554722748,0.4933,4367.2,4367.1,0.7204]
[1757554723950,0.1996,4367.2,4367.1,0.7204]
[1757554724458,0.4933,4367.2,4367.1,0.7204]
[1757554724758,0.6922,4367.2,4367.1,0.7204]
[1757554725356,0.1996,4367.2,4367.1,0.7204]
[1757554725556,0.2937,4367.9,4367.2,0.324]
[1757554725758,0.4933,4367.3,4367.2,0.7204]
[1757554726762,0.6922,4367.3,4367.2,0.7204]
[1757554729859,0.1996,4367.4,4367.3,0.7204]
[1757554730062,0.6922,4367.4,4367.3,0.7204]
[1757554730562,0.1996,4367.4,4367.3,0.7204]